[Event "17th Memorial Lezcano Montalvo 2025"]
[Site "Gran Canaria"]
[Date "2025.04.20"]
[Round "9.10"]
[White "Moreno Diepa, Diego"]
[Black "Barski, Radoslaw"]
[Result "1-0"]
[Annotator "ChessBase"]
[ECO "C54"]
[WhiteElo "2243"]
[BlackElo "2385"]
[PlyCount "71"]
[EventDate "2025.04.13"]
[EventType "swiss"]
[EventCountry "ESP"]
[SourceTitle "playchess.com"]
[Source "ChessBase"]
[SourceQuality "1"]
[TimeControl "5400+30"]

1. e4 {[%emt 0:00:04]} e5 {[%emt 0:05:54]} 2. Nf3 {[%emt 0:00:04]} Nc6 {[%emt 0:00:05]} 3. Bc4 {[%emt 0:00:39]} Bc5 {[%emt 0:00:08]} 4. c3 {[%emt 0:02:14]} Nf6 {[%emt 0:01:22]} 5. d3 {[%emt 0:00:08]} d6 {[%emt 0:01:15]} 6. a4 {[%emt 0:01:31]} a6 {[%emt 0:00:06]} 7. Nbd2 {[%emt 0:02:01]} Ba7 {[%emt 0:00:44]} 8. O-O {[%emt 0:00:44]} O-O {[%emt 0:01:37]} 9. h3 {[%emt 0:00:05]} Ne7 {[%emt 0:04:59]} 10. Re1 {[%emt 0:01:17]} Ng6 {[%emt 0:00:13]} 11. Nf1 {[%emt 0:00:48]} c6 {[%emt 0:04:54]} 12. Ng3 {[%emt 0:08:45]} d5 {[%emt 0:01:56]} 13. Bb3 {[%emt 0:01:31]} Bb8 {[%emt 0:15:01]} 14. Bg5 {[%emt 0:08:23]} h6 {[%emt 0:03:27]} 15. Bxf6 {[%emt 0:09:05]} Qxf6 {[%emt 0:00:13]} 16. exd5 {[%emt 0:00:04]} Nf4 {[%emt 0:01:41]} 17. d4 {[%emt 0:01:57]} exd4 {[%emt 0:00:53]} 18. cxd4 {[%emt 0:12:06]} cxd5 {[%emt 0:04:35]} 19. Ne5 {[%emt 0:01:45]} Ba7 {[%emt 0:16:24]} 20. a5 {[%emt 0:17:07]} Be6 {[%emt 0:05:36]} 21. Qd2 {[%emt 0:05:19]} h5 {[%emt 0:03:53]} 22. Ne2 {[%emt 0:04:29]} Nxe2+ {[%emt 0:03:32]} 23. Rxe2 {[%emt 0:00:04]} Rac8 {[%emt 0:01:17]} 24. Rd1 {[%emt 0:02:18]} Rc7 {[%emt 0:03:50]} 25. Re3 {[%emt 0:00:34]} Qh6 {[%emt 0:02:05]} 26. Ba2 {[%emt 0:02:55]} Rfc8 {[%emt 0:01:43]} 27. Bb1 {[%emt 0:00:03]} Bb8 {[%emt 0:04:40]} 28. Qe1 {[%emt 0:02:10]} Re7 {[%emt 0:03:13]} 29. Qb4 {[%emt 0:02:51]} Rec7 {[%emt 0:01:15]} 30. Qe1 {[%emt 0:01:21]} Re7 {[%emt 0:00:29]} 31. Qe2 {[%emt 0:00:51]} Ree8 {[%emt 0:03:11]} 32. Re1 {[%emt 0:02:13]} Bxe5 {[%emt 0:00:44]} 33. Rxe5 {[%emt 0:00:01]} Rc1 {[%emt 0:00:08]} 34. Bf5 {[%emt 0:03:48]} Rxe1+ {[%emt 0:00:34]} 35. Qxe1 {[%emt 0:00:03]} Rc8 {[%emt 0:00:05]} 36. Rxe6 {[%emt 0:00:17]} 1-0

[Event "17th Memorial Lezcano Montalvo 2025"]
[Site "Gran Canaria"]
[Date "2025.04.20"]
[Round "9.11"]
[White "Garcia Padron, Jose"]
[Black "Fiorito, Fabian"]
[Result "1/2-1/2"]
[Annotator "ChessBase"]
[ECO "A50"]
[WhiteElo "2355"]
[BlackElo "2268"]
[PlyCount "117"]
[EventDate "2025.04.13"]
[EventType "swiss"]
[EventCountry "ESP"]
[SourceTitle "playchess.com"]
[Source "ChessBase"]
[SourceQuality "1"]
[TimeControl "5400+30"]

1. Nf3 {[%emt 0:02:45]} Nf6 {[%emt 0:00:14]} 2. c4 {[%emt 0:00:50]} b6 {[%emt 0:00:18]} 3. g3 {[%emt 0:02:24]} Bb7 {[%emt 0:00:05]} 4. Bg2 {[%emt 0:00:05]} g6 {[%emt 0:00:05]} 5. O-O {[%emt 0:02:07]} Bg7 {[%emt 0:00:03]} 6. d4 {[%emt 0:00:22]} O-O {[%emt 0:00:05]} 7. Nc3 {[%emt 0:00:14]} Ne4 {[%emt 0:00:14]} 8. Nxe4 {[%emt 0:04:38]} Bxe4 {[%emt 0:00:05]} 9. Be3 {[%emt 0:00:06]} d6 {[%emt 0:01:08]} 10. Qd2 {[%emt 0:02:55]} Nd7 {[%emt 0:03:39]} 11. Bh6 {[%emt 0:03:27]} Nf6 {[%emt 0:01:31]} 12. Bxg7 {[%emt 0:02:22]} Kxg7 {[%emt 0:00:06]} 13. d5 {[%emt 0:00:28]} c5 {[%emt 0:01:16]} 14. Nh4 {[%emt 0:13:33]} Bxg2 {[%emt 0:00:28]} 15. Nxg2 {[%emt 0:00:26]} Qd7 {[%emt 0:04:01]} 16. f3 {[%emt 0:00:43]} b5 {[%emt 0:00:24]} 17. g4 {[%emt 0:03:08]} bxc4 {[%emt 0:07:09]} 18. g5 {[%emt 0:05:37]} Nh5 {[%emt 0:10:57]} 19. Rac1 {[%emt 0:03:31]} f6 {[%emt 0:06:46]} 20. gxf6+ {[%emt 0:07:00]} Rxf6 {[%emt 0:04:37]} 21. Rxc4 {[%emt 0:01:28]} Raf8 {[%emt 0:01:01]} 22. b4 {[%emt 0:01:08]} cxb4 {[%emt 0:02:57]} 23. Rxb4 {[%emt 0:00:33]} Kg8 {[%emt 0:03:09]} 24. Rfb1 {[%emt 0:07:46]} R6f7 {[%emt 0:01:28]} 25. a4 {[%emt 0:00:58]} Qf5 {[%emt 0:01:23]} 26. Ne3 {[%emt 0:13:01]} Qh3 {[%emt 0:13:13]} 27. Rb8 {[%emt 0:02:12]} Nf4 {[%emt 0:01:37]} 28. Rxf8+ {[%emt 0:00:08]} Rxf8 {[%emt 0:00:21]} 29. Kh1 {[%emt 0:02:59]} Qh4 {[%emt 0:06:45]} 30. Ng2 {[%emt 0:06:55]} Nxg2 {[%emt 0:01:22]} 31. Kxg2 {[%emt 0:00:14]} Qxa4 {[%emt 0:08:36]} 32. Rb7 {[%emt 0:00:07]} Qh4 {[%emt 0:02:00]} 33. Qe3 {[%emt 0:02:35]} Rf7 {[%emt 0:01:35]} 34. Rxa7 {[%emt 0:01:16]} Kg7 {[%emt 0:00:25]} 35. Rc7 {[%emt 0:01:43]} Qf6 {[%emt 0:01:29]} 36. Qe4 {[%emt 0:00:47]} Qg5+ {[%emt 0:02:14]} 37. Kf2 {[%emt 0:00:06]} Qf6 {[%emt 0:00:42]} 38. h4 {[%emt 0:00:44]} h5 {[%emt 0:04:33]} 39. Rc1 {[%emt 0:03:47]} Qf4 {[%emt 0:02:59]} 40. Rc4 {[%emt 0:00:07]} Qf6 {[%emt 0:05:36]} 41. Qe3 {[%emt 0:00:07]} Qf5 {[%emt 0:01:21]} 42. Rd4 {[%emt 0:00:49]} Kg8 {[%emt 0:01:41]} 43. Kg2 {[%emt 0:00:09]} Rg7 {[%emt 0:00:45]} 44. Kf2 {[%emt 0:01:12]} Kh7 {[%emt 0:01:00]} 45. Qg5 {[%emt 0:00:25]} Qf8 {[%emt 0:00:40]} 46. Re4 {[%emt 0:00:07]} Rf7 {[%emt 0:00:17]} 47. Re6 {[%emt 0:00:05]} Rf6 {[%emt 0:00:29]} 48. Re4 {[%emt 0:00:30]} Qf7 {[%emt 0:00:25]} 49. Qe3 {[%emt 0:00:28]} Qxd5 {[%emt 0:00:53]} 50. Rxe7+ {[%emt 0:00:26]} Rf7 {[%emt 0:00:06]} 51. Re8 {[%emt 0:01:06]} Rg7 {[%emt 0:01:47]} 52. Rc8 {[%emt 0:00:09]} g5 {[%emt 0:00:30]} 53. Qe8 {[%emt 0:02:18]} gxh4 {[%emt 0:00:00]} 54. Qh8+ {[%emt 0:00:04]} Kg6 {[%emt 0:00:00]} 55. Qe8+ {[%emt 0:00:21]} Kh7 {[%emt 0:00:18]} 56. Qh8+ {[%emt 0:00:05]} Kg6 {[%emt 0:00:04]} 57. Rc1 {[%emt 0:05:24]} Qd4+ 58. Kg2 {[%emt 0:00:30]} Kf7+ 59. Kh1 1/2-1/2

[Event "17th Memorial Lezcano Montalvo 2025"]
[Site "Gran Canaria"]
[Date "2025.04.20"]
[Round "9.12"]
[White "Rodriguez Lopez, David"]
[Black "Sanz Wawer, Daniel"]
[Result "0-1"]
[Annotator "ChessBase"]
[ECO "B22"]
[WhiteElo "2182"]
[BlackElo "2316"]
[PlyCount "74"]
[EventDate "2025.04.13"]
[EventType "swiss"]
[EventCountry "ESP"]
[SourceTitle "playchess.com"]
[Source "ChessBase"]
[SourceQuality "1"]
[TimeControl "5400+30"]

1. e4 {[%emt 0:00:03]} c5 {[%emt 0:04:43]} 2. Nf3 {[%emt 0:00:11]} e6 {[%emt 0:00:05]} 3. c3 {[%emt 0:00:06]} Nf6 {[%emt 0:04:55]} 4. e5 {[%emt 0:00:05]} Nd5 {[%emt 0:00:06]} 5. d4 {[%emt 0:00:03]} cxd4 {[%emt 0:00:54]} 6. cxd4 {[%emt 0:00:02]} d6 {[%emt 0:00:28]} 7. Bc4 {[%emt 0:00:46]} Nc6 {[%emt 0:04:42]} 8. O-O {[%emt 0:00:56]} Nb6 {[%emt 0:01:29]} 9. Bb3 {[%emt 0:03:38]} Be7 {[%emt 0:03:31]} 10. Qe2 {[%emt 0:02:09]} O-O {[%emt 0:02:17]} 11. Nc3 {[%emt 0:00:08]} Bd7 {[%emt 0:06:25]} 12. Bf4 {[%emt 0:05:57]} d5 {[%emt 0:04:14]} 13. Rac1 {[%emt 0:06:52]} a6 {[%emt 0:00:33]} 14. Bc2 {[%emt 0:02:15]} Nc4 {[%emt 0:03:35]} 15. Bd3 {[%emt 0:07:04]} b5 {[%emt 0:05:46]} 16. Bb1 {[%emt 0:10:49]} Rc8 {[%emt 0:03:08]} 17. h4 {[%emt 0:07:40]} Bxh4 {[%emt 0:10:56]} 18. g3 {[%emt 0:00:23]} Be7 {[%emt 0:00:11]} 19. Kg2 {[%emt 0:00:29]} g6 {[%emt 0:03:30]} 20. Rh1 {[%emt 0:02:02]} f5 {[%emt 0:03:47]} 21. exf6 {[%emt 0:02:12]} Bxf6 {[%emt 0:00:23]} 22. Rh2 {[%emt 0:07:27]} Nxd4 {[%emt 0:04:24]} 23. Nxd4 {[%emt 0:00:05]} Bxd4 {[%emt 0:00:06]} 24. Rch1 {[%emt 0:04:47]} Rf7 {[%emt 0:05:46]} 25. Rxh7 {[%emt 0:00:30]} Rxh7 {[%emt 0:03:06]} 26. Rxh7 {[%emt 0:00:01]} Kxh7 {[%emt 0:06:49]} 27. Qh5+ {[%emt 0:00:06]} Kg8 {[%emt 0:00:07]} 28. Qxg6+ {[%emt 0:00:10]} Bg7 {[%emt 0:00:21]} 29. Bg5 {[%emt 0:00:46]} Qc7 {[%emt 0:02:25]} 30. Bh6 {[%emt 0:18:49]} Qe5 {[%emt 0:01:38]} 31. Qh7+ {[%emt 0:02:24]} Kf8 {[%emt 0:00:02]} 32. Bg6 {[%emt 0:01:45]} Qf6 {[%emt 0:01:52]} 33. Bf4 {[%emt 0:00:36]} Be8 {[%emt 0:01:32]} 34. Bd3 {[%emt 0:00:26]} Ne5 {[%emt 0:02:24]} 35. Be2 {[%emt 0:02:32]} Bg6 {[%emt 0:00:38]} 36. Qh3 {[%emt 0:00:03]} b4 {[%emt 0:01:36]} 37. Nxd5 {[%emt 0:00:47]} Be4+ {[%emt 0:00:15]} 0-1

[Event "17th Memorial Lezcano Montalvo 2025"]
[Site "Gran Canaria"]
[Date "2025.04.20"]
[Round "9.13"]
[White "Garcia Brion, Eduardo"]
[Black "Dubkov, Andrej"]
[Result "1/2-1/2"]
[Annotator "ChessBase"]
[ECO "A00"]
[WhiteElo "2171"]
[BlackElo "2307"]
[PlyCount "42"]
[EventDate "2025.04.13"]
[EventType "swiss"]
[EventCountry "ESP"]
[SourceTitle "playchess.com"]
[Source "ChessBase"]
[SourceQuality "1"]
[TimeControl "5400+30"]

1. g3 {[%emt 0:00:03]} e5 {[%emt 0:00:19]} 2. Nf3 {[%emt 0:00:06]} e4 {[%emt 0:00:27]} 3. Nh4 {[%emt 0:00:06]} d5 {[%emt 0:00:12]} 4. d3 {[%emt 0:00:55]} exd3 {[%emt 0:00:40]} 5. Qxd3 {[%emt 0:06:00]} Na6 {[%emt 0:02:52]} 6. Bg2 {[%emt 0:01:54]} c6 {[%emt 0:02:58]} 7. O-O {[%emt 0:01:44]} Nc5 {[%emt 0:00:04]} 8. Qe3+ {[%emt 0:07:48]} Qe7 {[%emt 0:18:20]} 9. b4 {[%emt 0:04:53]} Ne4 {[%emt 0:09:42]} 10. c4 {[%emt 0:05:36]} Qe5 {[%emt 0:01:33]} 11. cxd5 {[%emt 0:00:40]} cxd5 {[%emt 0:00:19]} 12. Qb3 {[%emt 0:00:22]} Ngf6 {[%emt 0:09:48]} 13. Bb2 {[%emt 0:22:42]} Qe6 {[%emt 0:00:04]} 14. Nf3 {[%emt 0:03:51]} Be7 {[%emt 0:00:18]} 15. Nc3 {[%emt 0:01:32]} O-O {[%emt 0:01:14]} 16. Rad1 {[%emt 0:10:44]} Rd8 {[%emt 0:01:48]} 17. Nd4 {[%emt 0:01:25]} Qb6 {[%emt 0:02:02]} 18. Nxd5 {[%emt 0:11:06]} Nxd5 {[%emt 0:00:28]} 19. Bxe4 {[%emt 0:00:05]} Nf6 {[%emt 0:01:07]} 20. Nf5 {[%emt 0:00:19]} Bxf5 {[%emt 0:00:33]} 21. Bxf5 {[%emt 0:00:05]} Qxb4 {[%emt 0:46:12]} 1/2-1/2

[Event "17th Memorial Lezcano Montalvo 2025"]
[Site "Gran Canaria"]
[Date "2025.04.20"]
[Round "9.14"]
[White "Meneses Gonzalez, Kevin Moises"]
[Black "Marrero Cardenes, Agustin"]
[Result "1-0"]
[Annotator "ChessBase"]
[ECO "B12"]
[WhiteElo "2307"]
[BlackElo "2163"]
[PlyCount "73"]
[EventDate "2025.04.13"]
[EventType "swiss"]
[EventCountry "ESP"]
[SourceTitle "playchess.com"]
[Source "ChessBase"]
[SourceQuality "1"]
[TimeControl "5400+30"]

1. e4 {[%emt 0:00:02]} c6 {[%emt 0:00:07]} 2. d4 {[%emt 0:00:03]} d5 {[%emt 0:00:06]} 3. e5 {[%emt 0:00:02]} c5 {[%emt 0:00:07]} 4. Nf3 {[%emt 0:00:03]} Nc6 {[%emt 0:00:21]} 5. dxc5 {[%emt 0:00:33]} Bg4 {[%emt 0:00:16]} 6. c3 {[%emt 0:00:03]} e6 {[%emt 0:00:39]} 7. b4 {[%emt 0:00:02]} Bxf3 {[%emt 0:02:32]} 8. Qxf3 {[%emt 0:00:27]} Nxe5 {[%emt 0:00:35]} 9. Bb5+ {[%emt 0:00:03]} Nc6 {[%emt 0:00:23]} 10. O-O {[%emt 0:00:06]} Nf6 {[%emt 0:03:23]} 11. Bf4 {[%emt 0:00:05]} Be7 {[%emt 0:00:44]} 12. Nd2 {[%emt 0:00:07]} O-O {[%emt 0:00:42]} 13. Rfe1 {[%emt 0:00:00]} Qc8 {[%emt 0:07:55]} 14. Bd3 {[%emt 0:10:32]} Nb8 {[%emt 0:09:36]} 15. c4 {[%emt 0:12:27]} Nbd7 {[%emt 0:07:32]} 16. Qh3 {[%emt 0:03:47]} Re8 {[%emt 0:12:16]} 17. cxd5 {[%emt 0:05:37]} exd5 {[%emt 0:00:07]} 18. Nf3 {[%emt 0:02:48]} a6 {[%emt 0:11:27]} 19. Bg5 {[%emt 0:13:44]} Nf8 {[%emt 0:06:49]} 20. Qxc8 {[%emt 0:11:56]} Raxc8 {[%emt 0:00:03]} 21. Nd4 {[%emt 0:00:04]} g6 {[%emt 0:05:53]} 22. Rxe7 {[%emt 0:00:16]} Rxe7 {[%emt 0:00:01]} 23. Bxf6 {[%emt 0:00:06]} Ree8 {[%emt 0:00:18]} 24. Nb3 {[%emt 0:08:48]} Nd7 {[%emt 0:04:02]} 25. Bd4 {[%emt 0:00:56]} Ne5 {[%emt 0:01:32]} 26. Bxe5 {[%emt 0:00:03]} Rxe5 {[%emt 0:00:08]} 27. a4 {[%emt 0:00:01]} Ra8 {[%emt 0:05:22]} 28. Rd1 {[%emt 0:03:22]} Re6 {[%emt 0:01:57]} 29. f3 {[%emt 0:02:51]} f5 {[%emt 0:01:45]} 30. Kf2 {[%emt 0:00:28]} f4 {[%emt 0:00:50]} 31. Bf1 {[%emt 0:01:18]} Re3 {[%emt 0:00:58]} 32. Na5 {[%emt 0:00:07]} Ra3 {[%emt 0:02:12]} 33. Rxd5 {[%emt 0:01:18]} Ra2+ {[%emt 0:01:41]} 34. Kg1 {[%emt 0:01:44]} Ra1 {[%emt 0:01:34]} 35. Nxb7 {[%emt 0:00:20]} Re8 {[%emt 0:02:32]} 36. Rd8 {[%emt 0:00:06]} Rxd8 {[%emt 0:00:33]} 37. Nxd8 {[%emt 0:00:04]} 1-0

[Event "17th Memorial Lezcano Montalvo 2025"]
[Site "Gran Canaria"]
[Date "2025.04.20"]
[Round "9.15"]
[White "Alsina Leal, Daniel"]
[Black "Roquero Redondo, Miguel"]
[Result "1-0"]
[Annotator "ChessBase"]
[ECO "B50"]
[WhiteElo "2496"]
[BlackElo "2037"]
[PlyCount "99"]
[EventDate "2025.04.13"]
[EventType "swiss"]
[EventCountry "ESP"]
[SourceTitle "playchess.com"]
[Source "ChessBase"]
[SourceQuality "1"]
[TimeControl "5400+30"]

1. e4 {[%emt 0:08:31]} c5 {[%emt 0:00:08]} 2. Nf3 {[%emt 0:00:13]} d6 {[%emt 0:00:08]} 3. c3 {[%emt 0:00:05]} Nf6 {[%emt 0:00:10]} 4. Be2 {[%emt 0:00:08]} g6 {[%emt 0:00:54]} 5. O-O {[%emt 0:00:12]} Bg7 {[%emt 0:00:11]} 6. Bb5+ {[%emt 0:00:21]} Nbd7 {[%emt 0:01:21]} 7. Re1 {[%emt 0:01:04]} O-O {[%emt 0:01:09]} 8. d4 {[%emt 0:00:23]} cxd4 {[%emt 0:01:49]} 9. cxd4 {[%emt 0:00:14]} a6 {[%emt 0:05:12]} 10. Bd3 {[%emt 0:14:42]} e5 {[%emt 0:04:24]} 11. d5 {[%emt 0:12:56]} a5 {[%emt 0:04:34]} 12. Nc3 {[%emt 0:03:23]} Nc5 {[%emt 0:01:14]} 13. Bb5 {[%emt 0:03:15]} Bd7 {[%emt 0:16:54]} 14. Bg5 {[%emt 0:12:25]} a4 {[%emt 0:12:08]} 15. Bxd7 {[%emt 0:07:27]} Qxd7 {[%emt 0:00:18]} 16. Qe2 {[%emt 0:00:31]} Rfc8 {[%emt 0:07:56]} 17. Nd2 {[%emt 0:03:44]} Rab8 {[%emt 0:06:50]} 18. a3 {[%emt 0:03:10]} b5 {[%emt 0:01:24]} 19. Na2 {[%emt 0:00:27]} Na6 {[%emt 0:03:28]} 20. Rac1 {[%emt 0:27:19]} Qb7 {[%emt 0:03:51]} 21. g3 {[%emt 0:00:00]} Nd7 {[%emt 0:03:02]} 22. Nb4 {[%emt 0:00:00]} Nxb4 {[%emt 0:02:34]} 23. axb4 {[%emt 0:00:00]} Bf6 {[%emt 0:01:16]} 24. Be3 {[%emt 0:00:00]} Bd8 {[%emt 0:01:12]} 25. h4 {[%emt 0:00:00]} h5 {[%emt 0:03:13]} 26. Qd3 {[%emt 0:00:00]} Nf6 {[%emt 0:03:49]} 27. Bg5 {[%emt 0:00:00]} Qb6 {[%emt 0:00:37]} 28. Be3 {[%emt 0:00:00]} Qb7 {[%emt 0:00:10]} 29. Bg5 {[%emt 0:01:10]} Qb6 {[%emt 0:00:31]} 30. Bxf6 {[%emt 0:02:16]} Bxf6 {[%emt 0:00:09]} 31. Rc3 {[%emt 0:01:24]} Qd4 {[%emt 0:02:05]} 32. Qc2 {[%emt 0:00:26]} Rd8 {[%emt 0:03:15]} 33. Rc7 {[%emt 0:00:23]} Qxb4 {[%emt 0:00:21]} 34. Re3 {[%emt 0:00:24]} Rf8 {[%emt 0:01:08]} 35. Rec3 {[%emt 0:00:35]} Bd8 {[%emt 0:01:08]} 36. Rd7 {[%emt 0:00:10]} Bb6 {[%emt 0:00:35]} 37. Nf3 {[%emt 0:00:29]} Rbd8 {[%emt 0:01:10]} 38. Rb7 {[%emt 0:00:11]} Bc5 {[%emt 0:01:16]} 39. Nxe5 {[%emt 0:00:50]} Bxf2+ {[%emt 0:01:08]} 40. Qxf2 {[%emt 0:00:03]} dxe5 {[%emt 0:00:08]} 41. Rcc7 {[%emt 0:00:49]} Qd4 {[%emt 0:03:23]} 42. Qxd4 {[%emt 0:00:18]} exd4 {[%emt 0:00:04]} 43. Kf2 {[%emt 0:00:38]} Ra8 {[%emt 0:02:23]} 44. d6 {[%emt 0:00:47]} Rad8 {[%emt 0:01:15]} 45. e5 {[%emt 0:00:27]} Rfe8 {[%emt 0:01:35]} 46. Rxb5 {[%emt 0:01:05]} d3 {[%emt 0:01:15]} 47. Rd5 {[%emt 0:00:31]} d2 {[%emt 0:00:28]} 48. Ke2 {[%emt 0:00:22]} f6 {[%emt 0:00:05]} 49. d7 {[%emt 0:00:26]} Rf8 {[%emt 0:01:09]} 50. e6 {[%emt 0:00:12]} 1-0

[Event "17th Memorial Lezcano Montalvo 2025"]
[Site "Gran Canaria"]
[Date "2025.04.20"]
[Round "9.16"]
[White "Marrero Rodriguez, Jorge"]
[Black "Bolivar Castro, Alejandro"]
[Result "1-0"]
[Annotator "ChessBase"]
[ECO "C41"]
[WhiteElo "2251"]
[BlackElo "2006"]
[PlyCount "50"]
[EventDate "2025.04.13"]
[EventType "swiss"]
[EventCountry "ESP"]
[SourceTitle "playchess.com"]
[Source "ChessBase"]
[SourceQuality "1"]
[TimeControl "5400+30"]

1. e4 {[%emt 0:00:05]} d6 {[%emt 0:00:04]} 2. d4 {[%emt 0:00:04]} Nf6 {[%emt 0:00:02]} 3. Nc3 {[%emt 0:00:06]} e5 {[%emt 0:00:02]} 4. Nf3 {[%emt 0:00:58]} Nbd7 {[%emt 0:00:03]} 5. Rg1 {[%emt 0:01:06]} g6 {[%emt 0:02:30]} 6. Be3 {[%emt 0:00:44]} Bg7 {[%emt 0:00:17]} 7. dxe5 {[%emt 0:00:31]} dxe5 {[%emt 0:00:37]} 8. g4 {[%emt 0:00:20]} O-O {[%emt 0:05:02]} 9. Qd2 {[%emt 0:00:28]} c6 {[%emt 0:00:53]} 10. O-O-O {[%emt 0:00:27]} Qa5 {[%emt 0:02:47]} 11. Kb1 {[%emt 0:06:01]} Re8 {[%emt 0:13:55]} 12. Bh6 {[%emt 0:05:11]} b5 {[%emt 0:10:33]} 13. Bxg7 {[%emt 0:01:17]} Kxg7 {[%emt 0:00:09]} 14. Qe3 {[%emt 0:05:47]} b4 {[%emt 0:05:21]} 15. Ne2 {[%emt 0:00:18]} Nc5 {[%emt 0:02:22]} 16. Ng3 {[%emt 0:01:46]} Na4 {[%emt 0:21:20]} 17. Nf5+ {[%emt 0:04:01]} Bxf5 {[%emt 0:00:32]} 18. gxf5 {[%emt 0:00:21]} Rab8 {[%emt 0:10:49]} 19. Bc4 {[%emt 0:00:57]} Nc3+ {[%emt 0:01:12]} 20. bxc3 {[%emt 0:00:14]} bxc3+ {[%emt 0:00:02]} 21. Bb3 {[%emt 0:00:12]} c5 {[%emt 0:02:03]} 22. fxg6 {[%emt 0:01:02]} hxg6 {[%emt 0:01:07]} 23. Nh4 {[%emt 0:03:04]} Qa3 {[%emt 0:13:02]} 24. Qxc3 {[%emt 0:00:24]} Nh5 {[%emt 0:07:46]} 25. Rd7 {[%emt 0:00:21]} Rf8 {[%emt 0:00:00]} 1-0

[Event "17th Memorial Lezcano Montalvo 2025"]
[Site "Gran Canaria"]
[Date "2025.04.20"]
[Round "9.17"]
[White "Cruz Pino, Adrian"]
[Black "Brito Garcia, Alfredo"]
[Result "1-0"]
[Annotator "ChessBase"]
[ECO "A25"]
[WhiteElo "2099"]
[BlackElo "2214"]
[PlyCount "85"]
[EventDate "2025.04.13"]
[EventType "swiss"]
[EventCountry "ESP"]
[SourceTitle "playchess.com"]
[Source "ChessBase"]
[SourceQuality "1"]
[TimeControl "5400+30"]

1. c4 {[%emt 0:00:02]} Nf6 {[%emt 0:00:22]} 2. Nc3 {[%emt 0:00:06]} g6 {[%emt 0:00:17]} 3. g3 {[%emt 0:00:11]} Bg7 {[%emt 0:00:17]} 4. Bg2 {[%emt 0:00:05]} O-O {[%emt 0:00:13]} 5. e3 {[%emt 0:00:11]} e5 {[%emt 0:00:35]} 6. Nge2 {[%emt 0:00:06]} Nc6 {[%emt 0:01:29]} 7. O-O {[%emt 0:00:07]} d6 {[%emt 0:01:48]} 8. b3 {[%emt 0:00:13]} e4 {[%emt 0:09:00]} 9. d3 {[%emt 0:08:54]} exd3 {[%emt 0:12:32]} 10. Qxd3 {[%emt 0:00:05]} Re8 {[%emt 0:01:51]} 11. Bb2 {[%emt 0:00:32]} Bf5 {[%emt 0:04:42]} 12. Qd2 {[%emt 0:00:24]} h5 {[%emt 0:14:55]} 13. f3 {[%emt 0:06:45]} d5 {[%emt 0:17:26]} 14. cxd5 {[%emt 0:23:46]} Nxd5 {[%emt 0:00:44]} 15. Nxd5 {[%emt 0:02:56]} Bxb2 {[%emt 0:00:20]} 16. Qxb2 {[%emt 0:05:04]} Qxd5 {[%emt 0:00:11]} 17. e4 {[%emt 0:00:02]} Qc5+ {[%emt 0:06:06]} 18. Kh1 {[%emt 0:02:09]} Be6 {[%emt 0:01:30]} 19. Rac1 {[%emt 0:01:00]} Qb4 {[%emt 0:01:55]} 20. Nf4 {[%emt 0:05:34]} Rad8 {[%emt 0:02:09]} 21. Rfd1 {[%emt 0:01:50]} Rxd1+ {[%emt 0:02:58]} 22. Rxd1 {[%emt 0:00:04]} Rd8 {[%emt 0:00:29]} 23. Rxd8+ {[%emt 0:02:22]} Nxd8 {[%emt 0:00:14]} 24. h4 {[%emt 0:00:07]} Qe7 {[%emt 0:01:54]} 25. Qc3 {[%emt 0:01:48]} Nc6 {[%emt 0:01:05]} 26. Bf1 {[%emt 0:00:12]} Qb4 {[%emt 0:05:31]} 27. Qc1 {[%emt 0:03:11]} Qd6 {[%emt 0:01:17]} 28. Kg2 {[%emt 0:04:55]} Nd4 {[%emt 0:02:27]} 29. Qd2 {[%emt 0:02:49]} Qc5 {[%emt 0:01:26]} 30. Bd3 {[%emt 0:09:09]} c6 {[%emt 0:01:16]} 31. b4 {[%emt 0:00:59]} Qe5 {[%emt 0:01:04]} 32. Bf1 {[%emt 0:02:47]} b5 {[%emt 0:01:14]} 33. Nd3 {[%emt 0:00:30]} Qf6 {[%emt 0:00:35]} 34. Nf4 {[%emt 0:06:09]} Qe5 {[%emt 0:01:02]} 35. Nd3 {[%emt 0:01:36]} Qf6 {[%emt 0:00:05]} 36. f4 {[%emt 0:00:29]} Bg4 {[%emt 0:00:32]} 37. Ne5 {[%emt 0:00:07]} Qd8 {[%emt 0:01:24]} 38. Nxg4 {[%emt 0:00:29]} hxg4 {[%emt 0:00:17]} 39. Be2 {[%emt 0:00:05]} f5 {[%emt 0:00:35]} 40. exf5 {[%emt 0:01:57]} gxf5 {[%emt 0:00:29]} 41. Qd3 {[%emt 0:02:56]} Kg7 {[%emt 0:02:04]} 42. Kf2 {[%emt 0:00:24]} Qd5 {[%emt 0:00:26]} 43. Ke3 {[%emt 0:01:09]} 1-0

[Event "17th Memorial Lezcano Montalvo 2025"]
[Site "Gran Canaria"]
[Date "2025.04.20"]
[Round "9.18"]
[White "Alonso Perez, Alfredo"]
[Black "Rodriguez Avila, Alvaro"]
[Result "0-1"]
[Annotator "ChessBase"]
[ECO "A45"]
[WhiteElo "1853"]
[BlackElo "2212"]
[PlyCount "80"]
[EventDate "2025.04.13"]
[EventType "swiss"]
[EventCountry "ESP"]
[SourceTitle "playchess.com"]
[Source "ChessBase"]
[SourceQuality "1"]
[TimeControl "5400+30"]

1. d4 {[%emt 0:02:00]} Nf6 {[%emt 0:00:11]} 2. Bf4 {[%emt 0:00:05]} c5 {[%emt 0:00:08]} 3. c3 {[%emt 0:00:05]} Qb6 {[%emt 0:01:12]} 4. Qc1 {[%emt 0:09:01]} cxd4 {[%emt 0:06:29]} 5. cxd4 {[%emt 0:00:10]} Nc6 {[%emt 0:00:14]} 6. e3 {[%emt 0:01:06]} d6 {[%emt 0:00:48]} 7. Nf3 {[%emt 0:11:24]} g6 {[%emt 0:00:19]} 8. Be2 {[%emt 0:01:01]} Bg7 {[%emt 0:00:13]} 9. h3 {[%emt 0:00:22]} O-O {[%emt 0:01:13]} 10. O-O {[%emt 0:04:27]} Bf5 {[%emt 0:00:39]} 11. Nc3 {[%emt 0:11:03]} Rac8 {[%emt 0:00:49]} 12. g4 {[%emt 0:00:15]} Bd7 {[%emt 0:07:20]} 13. Qd2 {[%emt 0:07:49]} Nb4 {[%emt 0:03:33]} 14. Rfc1 {[%emt 0:06:29]} h5 {[%emt 0:00:48]} 15. Nh2 {[%emt 0:10:20]} hxg4 {[%emt 0:04:00]} 16. hxg4 {[%emt 0:01:32]} Bc6 {[%emt 0:00:20]} 17. f3 {[%emt 0:00:32]} Nfd5 {[%emt 0:01:45]} 18. Bg5 {[%emt 0:01:58]} e5 {[%emt 0:07:05]} 19. a3 {[%emt 0:09:01]} exd4 {[%emt 0:01:35]} 20. axb4 {[%emt 0:06:20]} dxc3 {[%emt 0:00:47]} 21. bxc3 {[%emt 0:01:08]} Rfe8 {[%emt 0:00:10]} 22. Nf1 {[%emt 0:01:31]} Re5 {[%emt 0:02:15]} 23. Bh4 {[%emt 0:02:39]} Rce8 {[%emt 0:01:27]} 24. Bf2 {[%emt 0:00:46]} Nxe3 {[%emt 0:05:13]} 25. b5 {[%emt 0:03:20]} Bd7 {[%emt 0:01:58]} 26. Ng3 {[%emt 0:01:44]} d5 {[%emt 0:04:54]} 27. Qa2 {[%emt 0:01:04]} Qf6 {[%emt 0:01:17]} 28. Re1 {[%emt 0:03:44]} Qf4 {[%emt 0:01:51]} 29. Qa4 {[%emt 0:00:56]} Qxa4 {[%emt 0:02:55]} 30. Rxa4 {[%emt 0:00:06]} a6 {[%emt 0:00:31]} 31. Ra2 {[%emt 0:00:28]} axb5 {[%emt 0:00:24]} 32. Rb1 {[%emt 0:01:16]} R5e7 {[%emt 0:02:02]} 33. Bxb5 {[%emt 0:00:46]} Bxb5 {[%emt 0:00:05]} 34. Rxb5 {[%emt 0:00:05]} Bxc3 {[%emt 0:00:04]} 35. Bxe3 {[%emt 0:00:27]} Rxe3 {[%emt 0:00:12]} 36. Rxd5 {[%emt 0:00:02]} Rxf3 {[%emt 0:00:20]} 37. Kg2 {[%emt 0:00:48]} Rfe3 {[%emt 0:00:24]} 38. Rb5 {[%emt 0:00:58]} R8e7 {[%emt 0:00:09]} 39. Rc2 {[%emt 0:00:07]} Kg7 {[%emt 0:01:52]} 40. Kf2 {[%emt 0:00:28]} Be1+ {[%emt 0:00:10]} 0-1